fUST/lending_fUST_20250221
["ID","MTS","AMOUNT","RATE_DAILY","PERIOD"]
[353836773,1740085844367,-500.0,0.00013945,2]
[353836774,1740085844376,-500.0,0.00013945,2]
[353836775,1740085844386,-561.19,0.00013945,2]
[353836776,1740085844395,-500.0,0.00013945,2]
[353836777,1740085844405,-500.0,0.00013945,2]
[353836778,1740085844414,-500.0,0.00013945,2]
[353836779,1740085844424,-500.0,0.00013945,2]
[353836780,1740085844433,-518.62,0.00013945,2]
[353836781,1740085844442,-500.0,0.00013945,2]
[353836782,1740085844452,-500.0,0.00013945,2]
[353836783,1740085844461,-500.0,0.00013945,2]
[353836784,1740085844471,-500.0,0.00013945,2]
[353836785,1740085844481,-500.0,0.00013945,2]
[353836786,1740085844490,-503.20914958,0.00013945,2]
[353836787,1740085844499,-500.0,0.00013945,2]
[353836788,1740085844509,-500.0,0.00013945,2]
[353836789,1740085844518,-500.0,0.00013945,2]
[353836790,1740085844527,-500.0,0.00013945,2]
[353836791,1740085844536,-12219.87,0.00013945,2]
[353836792,1740085844545,-500.0,0.00013945,2]
[353836793,1740085844554,-3050.27,0.00013945,2]
[353836794,1740085844657,-527.72618606,0.00013945,2]
[353836795,1740085844667,-771.85,0.00013945,2]
[353836796,1740085844677,-356.15532577,0.00013945,2]
[353836797,1740085844686,-500.0,0.00013945,2]
[353836798,1740085844695,-883.99,0.00013945,2]
[353836799,1740085844704,-500.0,0.00013945,2]
[353836800,1740085844714,-546.01,0.00013945,2]
[353836801,1740085844724,-2362.88,0.00013945,2]
[353836802,1740085844734,-565.49689721,0.00013945,2]
[353836803,1740085844743,-500.0,0.00013945,2]
[353836804,1740085844752,-33637.8,0.00013945,2]
[353836805,1740085844761,-675.8,0.00013945,2]
[353836806,1740085844771,-906.49,0.00013945,2]
[353836807,1740085844780,-500.0,0.00013945,2]
[353836808,1740085844789,-500.0,0.00013945,2]
[353836809,1740085844799,-1881.99,0.00013945,2]
[353836810,1740085844808,-500.0,0.00013945,2]
[353836811,1740085844817,-2460.54,0.00013945,2]
[353836812,1740085844827,-940.83,0.00013945,2]
[353836813,1740085844836,-964.32,0.00013945,2]
[353836814,1740085844846,-5336.19,0.00013945,2]
[353836815,1740085844858,-509.3,0.00013945,2]
[353836816,1740085844869,-500.0,0.00013945,2]
[353836817,1740085844879,-500.0,0.00013945,2]
[353836818,1740085844889,-500.0,0.00013945,2]
[353836819,1740085844899,-500.0,0.00013945,2]
[353836820,1740085844908,-500.0,0.00013945,2]
[353836821,1740085844918,-299.97500029,0.00013945,2]
[353836822,1740085844928,-500.0,0.00013945,2]
[353836823,1740085844939,-500.0,0.00013945,2]
[353836824,1740085844949,-3128.08,0.00013945,2]
[353836825,1740085844959,-500.0,0.00013945,2]
[353836826,1740085844968,-500.0,0.00013945,2]
[353836827,1740085844978,-500.0,0.00013945,2]
[353836828,1740085844988,-500.0,0.00013945,2]
[353836829,1740085844997,-1818.98,0.00013945,2]
[353836830,1740085845006,-500.0,0.00013945,2]
[353836831,1740085845016,-500.0,0.00013945,2]
[353836832,1740085845027,-500.0,0.00013945,2]
[353836833,1740085845037,-2771.81,0.00013945,2]
[353836834,1740085845046,-1352.82,0.00013945,2]
[353836835,1740085845055,-500.0,0.00013945,2]
[353836836,1740085845066,-500.0,0.00013945,2]
[353836837,1740085845075,-500.0,0.00013945,2]
[353836838,1740085845085,-1081.46,0.00013945,2]
[353836839,1740085845095,-500.0,0.00013945,2]
[353836840,1740085845104,-846.01,0.00013945,2]
[353836841,1740085845113,-1250.1,0.00013945,2]
[353836842,1740085845123,-500.0,0.00013945,2]
[353836843,1740085845133,-500.0,0.00013945,2]
[353836844,1740085845143,-610.98,0.00013945,2]
[353836845,1740085845153,-500.0,0.00013945,2]
[353836846,1740085845162,-500.0,0.00013945,2]
[353836847,1740085845172,-500.0,0.00013945,2]
[353836848,1740085845181,-500.0,0.00013945,2]
[353836849,1740085845190,-500.0,0.00013945,2]
[353836850,1740085845200,-500.0,0.00013945,2]
[353836851,1740085845210,-431.14371263,0.00013945,2]
[353836852,1740085845219,-500.0,0.00013945,2]
[353836853,1740085845228,-500.0,0.00013945,2]
[353836854,1740085845238,-500.0,0.00013945,2]
[353836855,1740085845247,-1808.03,0.00013945,2]
[353836856,1740085845256,-597.65,0.00013945,2]
[353836857,1740085845266,-4790.23,0.00013945,2]
[353836858,1740085845275,-1090.83,0.00013945,2]
[353836859,1740085845284,-500.0,0.00013945,2]
[353836860,1740085845293,-500.0,0.00013945,2]
[353836861,1740085845302,-500.0,0.00013945,2]
[353836862,1740085845311,-12831.87,0.00013945,2]
[353836863,1740085845321,-500.0,0.00013945,2]
[353836864,1740085845331,-500.0,0.00013945,2]
[353836865,1740085845340,-506.38,0.00013945,2]
[353836866,1740085845349,-500.0,0.00013945,2]
[353836867,1740085845358,-1483.65,0.00013945,2]
[353836868,1740085845368,-1767.81,0.00013945,2]
[353836869,1740085845377,-500.0,0.00013945,2]
[353836870,1740085845386,-1401.44,0.00013945,2]
[353836871,1740085845395,-500.0,0.00013945,2]
[353836872,1740085845405,-500.0,0.00013945,2]
[353836873,1740085845414,-569.2,0.00013945,2]
[353836874,1740085845423,-613.73,0.00013945,2]
[353836875,1740085845432,-500.0,0.00013945,2]
[353836876,1740085845441,-500.0,0.00013945,2]
[353836877,1740085845450,-500.0,0.00013945,2]
[353836878,1740085845459,-500.0,0.00013945,2]
[353836879,1740085845468,-500.0,0.00013945,2]
[353836880,1740085845477,-500.0,0.00013945,2]
[353836881,1740085845487,-1487.5,0.00013945,2]
[353836882,1740085845496,-5698.36,0.00013945,2]
[353836883,1740085845505,-500.0,0.00013945,2]
[353836884,1740085845515,-420.0,0.0001395,2]
[353836885,1740085845524,-10218.05533481,0.00013976,2]
[353836886,1740085845533,-159.82457549,0.00013979,2]
[353836887,1740085845543,-159.82457549,0.00013979,2]
[353836888,1740085845552,-159.82457549,0.00013979,2]
[353836889,1740085845561,-159.82457549,0.00013979,2]
[353836890,1740085845571,-159.82457549,0.00013979,2]
[353836891,1740085845580,-159.82457549,0.00013979,2]
[353836892,1740085845590,-159.82457549,0.00013979,2]
[353836893,1740085845599,-159.82457549,0.00013979,2]
[353836894,1740085845608,-159.82457549,0.00013979,2]
[353836895,1740085845618,-159.82457549,0.00013979,2]
[353836896,1740085845627,-159.82457549,0.00013979,2]
[353836897,1740085845637,-159.82457549,0.00013979,2]
[353836898,1740085845646,-159.82457549,0.00013979,2]
[353836899,1740085845655,-159.82457549,0.00013979,2]
[353836900,1740085845665,-159.82,0.00013979,2]
[353836901,1740085845675,-160.0,0.00013991,3]
[353836902,1740085845684,-1125.78062592,0.00013993,2]
[353836903,1740085845693,-151.0,0.00014,2]
[353836904,1740085845702,-151.0,0.00014,2]
[353836905,1740085845712,-500.0,0.00014027,2]
[353836906,1740085845722,-500.0,0.00014027,2]
[353836907,1740085845732,-500.0,0.00014027,2]
[353836908,1740085845742,-500.0,0.00014027,2]
[353836909,1740085845752,-500.0,0.00014027,2]
[353836910,1740085845763,-500.0,0.00014027,2]
[353836911,1740085845773,-500.0,0.00014027,2]
[353836912,1740085845782,-500.0,0.00014027,2]
[353836913,1740085845792,-500.0,0.00014027,2]
[353836914,1740085845801,-321.98,0.00014027,2]
[353836915,1740085845811,-500.0,0.00014027,2]
[353836916,1740085845820,-167.47,0.00014027,2]
[353836917,1740085845830,-500.0,0.00014027,2]
[353836918,1740085845839,-902.1,0.00014027,2]
[353836919,1740085845848,-500.0,0.00014027,2]
[353836920,1740085845858,-500.0,0.00014027,2]
[353836921,1740085845869,-500.0,0.00014027,2]
[353836922,1740085845879,-500.0,0.00014027,2]
[353836923,1740085845889,-500.0,0.00014027,2]
[353836924,1740085845898,-500.0,0.00014027,2]
[353836925,1740085845910,-500.0,0.00014027,2]
[353836926,1740085845921,-630.41,0.00014027,2]
[353836927,1740085845932,-500.0,0.00014027,2]
[353836928,1740085845942,-500.0,0.00014027,2]
[353836929,1740085845952,-500.0,0.00014027,2]
[353836930,1740085845962,-500.0,0.00014027,2]
[353836931,1740085845972,-500.0,0.00014027,2]
[353836932,1740085845981,-772.49,0.00014027,2]
[353836933,1740085845990,-873.43,0.00014027,2]
[353836934,1740085846000,-500.0,0.00014027,2]
[353836935,1740085846009,-500.0,0.00014027,2]
[353836936,1740085846019,-500.0,0.00014027,2]
[353836937,1740085846029,-500.0,0.00014027,2]
[353836938,1740085846039,-500.0,0.00014027,2]
[353836939,1740085846048,-500.0,0.00014027,2]
[353836940,1740085846058,-500.0,0.00014027,2]
[353836941,1740085846067,-500.0,0.00014027,2]
[353836942,1740085846076,-500.0,0.00014027,2]
[353836943,1740085846085,-761.3,0.00014027,2]
[353836944,1740085846094,-590.78002538,0.00014027,2]
[353836945,1740085846104,-500.0,0.00014027,2]
[353836946,1740085846114,-561.19,0.00014027,2]
[353836947,1740085846123,-500.0,0.00014027,2]
[353836948,1740085846132,-500.0,0.00014027,2]
[353836949,1740085846141,-500.0,0.00014027,2]
[353836950,1740085846151,-500.0,0.00014027,2]
[353836951,1740085846160,-518.62,0.00014027,2]
[353836952,1740085846169,-500.0,0.00014027,2]
[353836953,1740085846179,-500.0,0.00014027,2]
[353836954,1740085846188,-500.0,0.00014027,2]
[353836955,1740085846197,-500.0,0.00014027,2]
[353836956,1740085846207,-500.0,0.00014027,2]
[353836957,1740085846217,-500.0,0.00014027,2]
[353836958,1740085846227,-500.0,0.00014027,2]
[353836959,1740085846237,-500.0,0.00014027,2]
[353836960,1740085846246,-500.0,0.00014027,2]
[353836961,1740085846255,-12219.87,0.00014027,2]
[353836962,1740085846265,-500.0,0.00014027,2]
[353836963,1740085846274,-3050.27,0.00014027,2]
[353836964,1740085846284,-771.85,0.00014027,2]
[353836965,1740085846293,-500.0,0.00014027,2]
[353836966,1740085846303,-883.99,0.00014027,2]
[353836968,1740085846312,-500.0,0.00014027,2]
[353836970,1740085846322,-546.01,0.00014027,2]
[353836973,1740085846331,-2362.88,0.00014027,2]
[353836975,1740085846341,-500.0,0.00014027,2]
[353836977,1740085846350,-33637.8,0.00014027,2]
[353836979,1740085846359,-675.8,0.00014027,2]
[353836981,1740085846368,-906.49,0.00014027,2]
[353836983,1740085846377,-445.62761201,0.00014027,2]
[353836984,1740085846387,-500.0,0.00014027,2]
[353836986,1740085846396,-1881.99,0.00014027,2]
[353836988,1740085846406,-500.0,0.00014027,2]
[353836991,1740085846416,-2460.54,0.00014027,2]
[353836993,1740085846425,-940.83,0.00014027,2]
[353836994,1740085846435,-964.32,0.00014027,2]
[353836997,1740085846445,-5336.19,0.00014027,2]
[353836998,1740085846454,-509.3,0.00014027,2]
[353837000,1740085846464,-500.0,0.00014027,2]
[353837003,1740085846475,-500.0,0.00014027,2]
[353837005,1740085846486,-506.49934828,0.00014027,2]
[353837007,1740085846495,-619.06561779,0.00014027,2]
[353837009,1740085846504,-500.0,0.00014027,2]
[353837011,1740085846514,-500.0,0.00014027,2]
[353837013,1740085846523,-3128.08,0.00014027,2]
[353837015,1740085846532,-500.0,0.00014027,2]
[353837016,1740085846541,-500.0,0.00014027,2]
[353837019,1740085846551,-500.0,0.00014027,2]
[353837021,1740085846561,-500.0,0.00014027,2]
[353837023,1740085846571,-1818.98,0.00014027,2]
[353837025,1740085846581,-500.0,0.00014027,2]
[353837027,1740085846590,-500.0,0.00014027,2]
[353837029,1740085846600,-500.0,0.00014027,2]
[353837031,1740085846610,-2771.81,0.00014027,2]
[353837033,1740085846619,-1352.82,0.00014027,2]
[353837034,1740085846628,-500.0,0.00014027,2]
[353837036,1740085846637,-500.0,0.00014027,2]
[353837038,1740085846648,-500.0,0.00014027,2]
[353837040,1740085846658,-500.0,0.00014027,2]
[353837041,1740085846668,-1081.46,0.00014027,2]
[353837042,1740085846679,-846.01,0.00014027,2]
[353837044,1740085846689,-1250.1,0.00014027,2]
[353837046,1740085846699,-500.0,0.00014027,2]
[353837047,1740085846710,-501.01678089,0.00014027,2]
[353837048,1740085846723,-610.98,0.00014027,2]
[353837049,1740085846736,-500.0,0.00014027,2]
[353837050,1740085846747,-500.0,0.00014027,2]
[353837051,1740085846757,-500.0,0.00014027,2]
[353837052,1740085846769,-500.0,0.00014027,2]
[353837053,1740085846779,-500.0,0.00014027,2]
[353837054,1740085846790,-500.0,0.00014027,2]
[353837055,1740085846800,-503.0558322,0.00014027,2]
[353837056,1740085846810,-500.0,0.00014027,2]
[353837057,1740085846821,-1808.03,0.00014027,2]
[353837058,1740085846831,-597.65,0.00014027,2]
[353837059,1740085846841,-4790.23,0.00014027,2]
[353837060,1740085846852,-1090.83,0.00014027,2]
[353837061,1740085846866,-500.0,0.00014027,2]
[353837062,1740085846876,-500.0,0.00014027,2]
[353837063,1740085846886,-638.61968683,0.00014027,2]
[353837064,1740085846895,-12831.87,0.00014027,2]
[353837065,1740085846905,-500.0,0.00014027,2]
[353837066,1740085846915,-500.0,0.00014027,2]
[353837067,1740085846925,-506.38,0.00014027,2]
[353837068,1740085846934,-500.0,0.00014027,2]
[353837069,1740085847042,-1483.65,0.00014027,2]
[353837070,1740085847053,-1767.81,0.00014027,2]
[353837071,1740085847063,-500.0,0.00014027,2]
[353837072,1740085847072,-1401.44,0.00014027,2]
[353837073,1740085847082,-500.0,0.00014027,2]
[353837074,1740085847092,-500.0,0.00014027,2]
[353837075,1740085847101,-569.2,0.00014027,2]
[353837076,1740085847111,-613.73,0.00014027,2]
[353837077,1740085847121,-500.0,0.00014027,2]
[353837078,1740085847130,-500.0,0.00014027,2]
[353837079,1740085847139,-500.0,0.00014027,2]
[353837080,1740085847149,-500.0,0.00014027,2]
[353837081,1740085847159,-500.0,0.00014027,2]
[353837082,1740085847171,-631.0206765,0.00014027,2]
[353837083,1740085847181,-1487.5,0.00014027,2]
[353837084,1740085847191,-5698.36,0.00014027,2]
[353837085,1740085847202,-371.04980612,0.00014027,2]
[353837086,1740085847213,-7438.69753278,0.00014079,2]
[353837087,1740085847227,-151.0,0.000141,2]
[353837088,1740085847238,-151.0,0.000141,2]
[353837089,1740085847247,-500.0,0.00014109,2]
[353837090,1740085847257,-500.0,0.00014109,2]
[353837091,1740085847267,-500.0,0.00014109,2]
[353837092,1740085847277,-500.0,0.00014109,2]
[353837093,1740085847286,-500.0,0.00014109,2]
[353837094,1740085847296,-511.2091456,0.00014109,2]
[353837095,1740085847306,-500.0,0.00014109,2]
[353837096,1740085847316,-500.0,0.00014109,2]
[353837097,1740085847325,-404.52,0.00014109,2]
[353837098,1740085847335,-902.1,0.00014109,2]
[353837099,1740085847345,-500.0,0.00014109,2]
[353837100,1740085847354,-500.0,0.00014109,2]
[353837101,1740085847364,-500.0,0.00014109,2]
[353837102,1740085847373,-500.0,0.00014109,2]
[353837103,1740085847384,-500.0,0.00014109,2]
[353837104,1740085847394,-512.31886737,0.00014109,2]
[353837105,1740085847404,-500.0,0.00014109,2]
[353837106,1740085847414,-630.41,0.00014109,2]
[353837107,1740085847423,-500.0,0.00014109,2]
[353837108,1740085847434,-503.17323342,0.00014109,2]
[353837109,1740085847444,-500.0,0.00014109,2]
[353837110,1740085847454,-500.0,0.00014109,2]
[353837111,1740085847464,-500.0,0.00014109,2]
[353837112,1740085847477,-772.49,0.00014109,2]
[353837113,1740085847486,-873.43,0.00014109,2]
[353837114,1740085847496,-500.0,0.00014109,2]
[353837115,1740085847506,-500.0,0.00014109,2]
[353837116,1740085847516,-500.0,0.00014109,2]
[353837117,1740085847526,-500.0,0.00014109,2]
[353837118,1740085847535,-500.0,0.00014109,2]
[353837119,1740085847545,-500.0,0.00014109,2]
[353837120,1740085847554,-500.0,0.00014109,2]
[353837121,1740085847564,-500.0,0.00014109,2]
[353837122,1740085847573,-500.0,0.00014109,2]
[353837123,1740085847583,-761.3,0.00014109,2]
[353837124,1740085847593,-500.0,0.00014109,2]
[353837125,1740085847603,-561.19,0.00014109,2]
[353837126,1740085847612,-500.0,0.00014109,2]
[353837127,1740085847622,-500.0,0.00014109,2]
[353837128,1740085847631,-500.0,0.00014109,2]
[353837129,1740085847640,-500.0,0.00014109,2]
[353837130,1740085847650,-518.62,0.00014109,2]
[353837131,1740085847659,-500.0,0.00014109,2]
[353837132,1740085847669,-500.0,0.00014109,2]
[353837133,1740085847679,-500.0,0.00014109,2]
[353837134,1740085847688,-500.0,0.00014109,2]
[353837135,1740085847698,-500.0,0.00014109,2]
[353837136,1740085847708,-500.0,0.00014109,2]
[353837137,1740085847718,-500.0,0.00014109,2]
[353837138,1740085847730,-500.0,0.00014109,2]
[353837139,1740085847739,-500.0,0.00014109,2]
[353837140,1740085847749,-12219.87,0.00014109,2]
[353837141,1740085847759,-3050.27,0.00014109,2]
[353837142,1740085847768,-500.0,0.00014109,2]
[353837143,1740085847779,-771.85,0.00014109,2]
[353837144,1740085847789,-500.0,0.00014109,2]
[353837145,1740085847798,-883.99,0.00014109,2]
[353837146,1740085847808,-500.0,0.00014109,2]
[353837147,1740085847818,-546.01,0.00014109,2]
[353837148,1740085847827,-2362.88,0.00014109,2]
[353837149,1740085847837,-500.0,0.00014109,2]
[353837150,1740085847847,-33637.8,0.00014109,2]
[353837151,1740085847858,-675.8,0.00014109,2]
[353837152,1740085847870,-906.49,0.00014109,2]
[353837153,1740085847880,-500.0,0.00014109,2]
[353837154,1740085847890,-1881.99,0.00014109,2]
[353837155,1740085847899,-483.0699101,0.00014109,2]
[353837156,1740085847911,-2460.54,0.00014109,2]
[353837157,1740085847921,-940.83,0.00014109,2]
[353837158,1740085847931,-964.32,0.00014109,2]
[353837159,1740085847942,-5336.19,0.00014109,2]
[353837160,1740085847953,-509.3,0.00014109,2]
[353837161,1740085847963,-500.0,0.00014109,2]
[353837162,1740085847974,-500.0,0.00014109,2]
[353837163,1740085847984,-500.0,0.00014109,2]
[353837164,1740085847994,-500.0,0.00014109,2]
[353837165,1740085848004,-3128.08,0.00014109,2]
[353837166,1740085848014,-574.28289416,0.00014109,2]
[353837167,1740085848024,-500.0,0.00014109,2]
[353837168,1740085848035,-500.0,0.00014109,2]
[353837169,1740085848045,-500.0,0.00014109,2]
[353837170,1740085848056,-1818.98,0.00014109,2]
[353837171,1740085848067,-500.0,0.00014109,2]
[353837172,1740085848077,-500.0,0.00014109,2]
[353837173,1740085848088,-500.0,0.00014109,2]
[353837174,1740085848098,-2771.81,0.00014109,2]
[353837175,1740085848107,-1352.82,0.00014109,2]
[353837176,1740085848116,-500.0,0.00014109,2]
[353837177,1740085848126,-500.0,0.00014109,2]
[353837178,1740085848136,-500.0,0.00014109,2]
[353837179,1740085848145,-500.0,0.00014109,2]
[353837180,1740085848156,-1081.46,0.00014109,2]
[353837181,1740085848166,-846.01,0.00014109,2]
[353837182,1740085848176,-1250.1,0.00014109,2]
[353837183,1740085848186,-500.0,0.00014109,2]
[353837184,1740085848197,-610.98,0.00014109,2]
[353837185,1740085848208,-500.0,0.00014109,2]
[353837186,1740085848222,-500.0,0.00014109,2]
[353837187,1740085848232,-500.0,0.00014109,2]
[353837188,1740085848242,-500.0,0.00014109,2]
[353837189,1740085848252,-500.0,0.00014109,2]
[353837190,1740085848263,-378.45,0.00014109,2]
[353837191,1740085848273,-1808.03,0.00014109,2]
[353837192,1740085848283,-597.65,0.00014109,2]
[353837193,1740085848293,-4790.23,0.00014109,2]
[353837194,1740085848302,-1090.83,0.00014109,2]
[353837195,1740085848311,-500.0,0.00014109,2]
[353837196,1740085848320,-500.0,0.00014109,2]
[353837197,1740085848329,-12831.87,0.00014109,2]
[353837198,1740085848339,-500.0,0.00014109,2]
[353837199,1740085848350,-500.0,0.00014109,2]
[353837200,1740085848359,-506.38,0.00014109,2]
[353837201,1740085848369,-500.0,0.00014109,2]
[353837202,1740085848379,-1483.65,0.00014109,2]
[353837203,1740085848388,-1767.81,0.00014109,2]
[353837204,1740085848397,-500.0,0.00014109,2]
[353837205,1740085848406,-1401.44,0.00014109,2]
[353837206,1740085848415,-500.0,0.00014109,2]
[353837207,1740085848426,-500.0,0.00014109,2]
[353837208,1740085848435,-569.2,0.00014109,2]
[353837209,1740085848444,-613.73,0.00014109,2]
[353837210,1740085848453,-500.0,0.00014109,2]
[353837211,1740085848463,-500.0,0.00014109,2]
[353837212,1740085848474,-563.359996,0.00014109,2]
[353837213,1740085848483,-500.0,0.00014109,2]
[353837214,1740085848492,-500.0,0.00014109,2]
[353837215,1740085848502,-1487.5,0.00014109,2]
[353837216,1740085848512,-5698.36,0.00014109,2]
[353837217,1740085848522,-500.0,0.00014173,2]
[353837218,1740085848532,-500.0,0.00014191,2]
[353837219,1740085848542,-500.0,0.00014191,2]
[353837220,1740085848552,-559.24,0.00014191,2]
[353837221,1740085848563,-404.5563,0.00014191,2]
[353837222,1740085848572,-500.0,0.00014191,2]
[353837223,1740085848581,-297.48849811,0.00014191,2]
[353837224,1740085848590,-500.0,0.00014191,2]
[353837225,1740085848600,-902.1,0.00014191,2]
[353837226,1740085848610,-500.0,0.00014191,2]
[353837227,1740085848620,-500.0,0.00014191,2]
[353837228,1740085848631,-500.0,0.00014191,2]
[353837229,1740085848643,-500.0,0.00014191,2]
[353837230,1740085848653,-299.16,0.00014191,2]
[353837231,1740085848663,-630.41,0.00014191,2]
[353837232,1740085848673,-500.0,0.00014191,2]
[353837233,1740085848683,-500.0,0.00014191,2]
[353837234,1740085848692,-500.0,0.00014191,2]
[353837235,1740085848702,-500.0,0.00014191,2]
[353837236,1740085848712,-772.49,0.00014191,2]
[353837237,1740085848722,-873.43,0.00014191,2]
[353837238,1740085848732,-500.0,0.00014191,2]
[353837239,1740085848742,-500.0,0.00014191,2]
[353837240,1740085848751,-500.0,0.00014191,2]
[353837241,1740085848761,-500.0,0.00014191,2]
[353837242,1740085848770,-500.0,0.00014191,2]
[353837243,1740085848778,-500.0,0.00014191,2]
[353837244,1740085848788,-155.44690647,0.00014191,2]
[353837245,1740085848798,-500.0,0.00014191,2]
[353837246,1740085848808,-500.0,0.00014191,2]
[353837247,1740085848817,-761.3,0.00014191,2]
[353837248,1740085848827,-500.0,0.00014191,2]
[353837249,1740085848836,-561.19,0.00014191,2]
[353837250,1740085848847,-500.0,0.00014191,2]
[353837251,1740085848857,-500.0,0.00014191,2]
[353837252,1740085848870,-500.0,0.00014191,2]
[353837253,1740085848879,-500.0,0.00014191,2]
[353837254,1740085848889,-518.62,0.00014191,2]
[353837255,1740085848899,-500.0,0.00014191,2]
[353837256,1740085848910,-500.0,0.00014191,2]
[353837257,1740085848919,-500.0,0.00014191,2]
[353837258,1740085848929,-500.0,0.00014191,2]
[353837259,1740085848941,-500.0,0.00014191,2]
[353837260,1740085848951,-500.0,0.00014191,2]
[353837261,1740085848962,-500.0,0.00014191,2]
[353837262,1740085848973,-500.0,0.00014191,2]
[353837263,1740085848983,-500.0,0.00014191,2]
[353837264,1740085848993,-12219.87,0.00014191,2]
[353837265,1740085849003,-3050.27,0.00014191,2]
[353837266,1740085849014,-500.0,0.00014191,2]
[353837267,1740085849023,-771.85,0.00014191,2]
[353837268,1740085849033,-500.0,0.00014191,2]
[353837269,1740085849043,-883.99,0.00014191,2]
[353837270,1740085849053,-500.0,0.00014191,2]
[353837271,1740085849063,-546.01,0.00014191,2]
[353837272,1740085849073,-2362.88,0.00014191,2]
[353837273,1740085849083,-500.0,0.00014191,2]
[353837274,1740085849093,-33637.8,0.00014191,2]
[353837275,1740085849103,-675.8,0.00014191,2]
[353837276,1740085849113,-906.49,0.00014191,2]
[353837277,1740085849122,-500.0,0.00014191,2]
[353837278,1740085849132,-1881.99,0.00014191,2]
[353837279,1740085849142,-2460.54,0.00014191,2]
[353837280,1740085849151,-940.83,0.00014191,2]
[353837281,1740085849161,-964.32,0.00014191,2]
[353837282,1740085849171,-5336.19,0.00014191,2]
[353837283,1740085849182,-509.3,0.00014191,2]
[353837284,1740085849192,-500.0,0.00014191,2]
[353837285,1740085849202,-500.0,0.00014191,2]
[353837286,1740085849308,-500.0,0.00014191,2]
[353837287,1740085849318,-500.0,0.00014191,2]
[353837288,1740085849327,-3128.08,0.00014191,2]
[353837289,1740085849336,-500.0,0.00014191,2]
[353837290,1740085849346,-500.0,0.00014191,2]
[353837291,1740085849357,-500.0,0.00014191,2]
[353837292,1740085849367,-1818.98,0.00014191,2]
[353837293,1740085849377,-500.0,0.00014191,2]
[353837294,1740085849387,-500.0,0.00014191,2]
[353837295,1740085849398,-500.0,0.00014191,2]
[353837296,1740085849408,-2771.81,0.00014191,2]
[353837297,1740085849419,-500.0,0.00014191,2]
[353837298,1740085849429,-1352.82,0.00014191,2]
[353837299,1740085849439,-500.0,0.00014191,2]
[353837300,1740085849449,-500.0,0.00014191,2]
[353837301,1740085849459,-500.0,0.00014191,2]
[353837302,1740085849469,-1081.46,0.00014191,2]
[353837303,1740085849480,-846.01,0.00014191,2]
[353837304,1740085849491,-1250.1,0.00014191,2]
[353837305,1740085849501,-500.0,0.00014191,2]
[353837306,1740085849511,-610.98,0.00014191,2]
[353837307,1740085849520,-500.0,0.00014191,2]
[353837308,1740085849531,-500.0,0.00014191,2]
[353837309,1740085849540,-500.0,0.00014191,2]
[353837310,1740085849550,-500.0,0.00014191,2]
[353837311,1740085849559,-1808.03,0.00014191,2]